bitfinex/quotes_BTCUSD_20241011
["timestamp","ask_amount","ask_price","bid_price","bid_amount"]
[1728615259114,0.49323719,60560.0,60559.0,0.001634]
[1728615260048,0.49423719,60560.0,60559.0,0.001634]
[1728615260961,0.49323719,60560.0,60559.0,0.001634]
[1728615262777,0.49923719,60560.0,60559.0,0.001634]
[1728615265415,0.17582056,60560.0,60559.0,0.001634]
[1728615266129,0.16982056,60560.0,60559.0,0.001634]
[1728615266352,0.15882056,60560.0,60559.0,0.001634]
[1728615266796,0.16182056,60560.0,60559.0,0.001634]
[1728615267021,0.15882056,60560.0,60559.0,0.001634]
[1728615268410,0.16082056,60560.0,60559.0,0.001634]
[1728615273113,0.15882056,60560.0,60559.0,0.001634]
[1728615273809,0.15882056,60560.0,60559.0,0.002634]
[1728615286446,0.25789579,60560.0,60559.0,0.002634]
[1728615289570,0.15882056,60560.0,60559.0,0.002634]
[1728615291187,0.23762056,60560.0,60559.0,0.002634]
[1728615293643,0.23762056,60560.0,60559.0,0.001634]
[1728615294090,0.23762056,60560.0,60559.0,0.005634]
[1728615295729,0.10755637,60560.0,60559.0,0.005634]
[1728615295949,0.25616837,60560.0,60559.0,0.005634]
[1728615296614,0.25816837,60560.0,60559.0,0.005634]
[1728615297068,0.25816837,60560.0,60559.0,0.001634]
[1728615297300,0.25816837,60560.0,60559.0,0.003634]
[1728615298890,0.15909314,60560.0,60559.0,0.003634]
[1728615307729,0.15909314,60560.0,60559.0,0.01907283]
[1728615307950,0.15909314,60560.0,60559.0,0.003634]
[1728615310941,0.01048114,60560.0,60553.0,0.229463]
[1728615311229,0.148617,60559.0,60553.0,0.229463]
[1728615311460,0.30770714,60560.0,60553.0,0.229463]
[1728615311461,0.148618,60558.0,60553.0,0.229463]
[1728615311704,0.15710042,60558.0,60553.0,0.229463]
[1728615311928,0.00848242,60558.0,60554.0,0.148627]
[1728615312148,0.15710042,60558.0,60553.0,0.229463]
[1728615312368,0.148618,60558.0,60553.0,0.229463]
[1728615312627,0.0084842,60557.0,60553.0,0.229463]
[1728615312848,0.0084842,60557.0,60554.0,0.148626]
[1728615313298,0.001,60558.0,60555.0,0.148625]
[1728615313524,0.001,60558.0,60554.0,0.148627]
[1728615313744,0.00848598,60557.0,60554.0,0.148627]
[1728615313969,0.001,60558.0,60554.0,0.148627]
[1728615314189,0.148615,60559.0,60554.0,0.148627]
[1728615314649,0.00947975,60558.0,60555.0,0.003]
[1728615315090,0.001,60558.0,60555.0,0.003]
[1728615315807,0.148615,60559.0,60553.0,0.13023704]
[1728615316077,0.049562,60568.0,60557.0,0.005]
[1728615316078,0.000817,60565.0,60557.0,0.005]
[1728615316355,0.000817,60565.0,60564.0,0.52455942]
[1728615316597,0.000817,60565.0,60564.0,0.69926276]
[1728615316822,0.24774756,60581.0,60564.0,0.69926276]
[1728615316823,0.24774756,60581.0,60580.0,0.148563]
[1728615317281,0.000817,60582.0,60580.0,0.148563]
[1728615317507,0.000817,60582.0,60581.0,0.148561]
[1728615317953,0.000817,60582.0,60580.0,0.148563]
[1728615318413,0.000817,60582.0,60581.0,0.148561]
[1728615319117,0.001817,60582.0,60581.0,0.148561]
[1728615319340,0.002817,60582.0,60581.0,0.148561]
[1728615319785,0.001817,60582.0,60581.0,0.148561]
[1728615320009,0.002817,60582.0,60581.0,0.154561]
[1728615331482,0.002817,60582.0,60581.0,0.148561]
[1728615331483,0.001817,60582.0,60581.0,0.148561]
[1728615331974,0.001817,60582.0,60581.0,0.156561]
[1728615332212,0.002817,60582.0,60581.0,0.156561]
[1728615332455,0.01763863,60582.0,60578.0,0.0782]
[1728615332677,0.001817,60582.0,60581.0,0.008]
[1728615332902,0.002817,60582.0,60581.0,0.156561]
[1728615333361,0.01864179,60582.0,60581.0,0.148561]
[1728615333589,0.001817,60582.0,60580.0,0.148562]
[1728615333832,0.01864337,60582.0,60581.0,0.148561]
[1728615334069,0.001817,60582.0,60581.0,0.148561]
[1728615334863,0.0186448,60582.0,60581.0,0.148561]
[1728615335321,0.0176448,60582.0,60581.0,0.148561]
[1728615335540,0.0196448,60582.0,60581.0,0.156561]
[1728615346542,0.002817,60582.0,60581.0,0.156561]
[1728615346975,0.01963483,60582.0,60581.0,0.156561]
[1728615347190,0.002817,60582.0,60581.0,0.156561]
[1728615347445,0.01963562,60582.0,60581.0,0.156561]
[1728615347661,0.002817,60582.0,60581.0,0.156561]
[1728615347858,0.01963009,60582.0,60581.0,0.1812437]
[1728615348153,0.002817,60582.0,60581.0,0.1812437]
[1728615348418,0.0196293,60582.0,60581.0,0.1812437]
[1728615348701,0.002817,60582.0,60581.0,0.1812437]
[1728615348920,0.01962852,60582.0,60581.0,0.1812437]
[1728615349168,0.002817,60582.0,60581.0,0.1812437]
[1728615349404,0.0196293,60582.0,60581.0,0.1812437]
[1728615349634,0.002817,60582.0,60581.0,0.1812437]
[1728615349856,0.01963003,60582.0,60581.0,0.1812437]
[1728615350104,0.002817,60582.0,60581.0,0.1812437]
[1728615350317,0.01963003,60582.0,60581.0,0.1812437]
[1728615350539,0.002817,60582.0,60581.0,0.1812437]
[1728615350762,0.01963003,60582.0,60581.0,0.1812437]
[1728615350976,0.002817,60582.0,60581.0,0.1812437]
[1728615351169,0.01963082,60582.0,60581.0,0.1812437]
[1728615351399,0.002817,60582.0,60581.0,0.1812437]
[1728615351617,0.01963082,60582.0,60581.0,0.1812437]
[1728615351835,0.002817,60582.0,60581.0,0.1812437]
[1728615351983,0.01963161,60582.0,60581.0,0.1812437]
[1728615352202,0.002817,60582.0,60581.0,0.156561]
[1728615352439,0.0196324,60582.0,60581.0,0.18124162]
[1728615352627,0.002817,60582.0,60581.0,0.18124162]
[1728615353184,0.01963483,60582.0,60581.0,0.18124162]
[1728615353402,0.002817,60582.0,60581.0,0.18124162]
[1728615353615,0.01963641,60582.0,60581.0,0.18124162]
[1728615353831,0.002817,60582.0,60581.0,0.18124162]
[1728615354043,0.01962437,60582.0,60581.0,0.18124162]
[1728615354259,0.002817,60582.0,60581.0,0.18124162]
[1728615355567,0.002817,60582.0,60581.0,0.156561]
[1728615355793,0.002817,60582.0,60581.0,0.18124138]
[1728615356260,0.0196264,60582.0,60581.0,0.18124138]
[1728615356485,0.002817,60582.0,60581.0,0.18124138]
[1728615356670,0.01962674,60582.0,60581.0,0.18124138]
[1728615356882,0.002817,60582.0,60581.0,0.18124138]
[1728615357029,0.0196291,60582.0,60581.0,0.18124138]
[1728615357239,0.002817,60582.0,60581.0,0.18124138]
[1728615357672,0.01962911,60582.0,60581.0,0.18124138]
[1728615358066,0.01962911,60582.0,60581.0,0.03268038]
[1728615358265,0.01962911,60582.0,60581.0,0.18124138]
[1728615358554,0.002817,60582.0,60581.0,0.18124138]
[1728615359008,0.0196299,60582.0,60581.0,0.18123577]
[1728615359230,0.002817,60582.0,60581.0,0.18123577]
[1728615359418,0.0196264,60582.0,60581.0,0.18123577]
[1728615359646,0.002817,60582.0,60581.0,0.18123577]
[1728615360085,0.0196264,60582.0,60581.0,0.18123577]
[1728615360305,0.002817,60582.0,60581.0,0.18123577]
[1728615360529,0.01962437,60582.0,60581.0,0.18123577]
[1728615360747,0.002817,60582.0,60581.0,0.18123577]
[1728615360968,0.0196264,60582.0,60581.0,0.18123577]
[1728615361474,0.0196264,60582.0,60581.0,0.18123642]
[1728615362005,0.002817,60582.0,60581.0,0.18123642]
[1728615362488,0.002817,60582.0,60581.0,0.23049142]
[1728615364473,0.002817,60582.0,60581.0,0.205816]
[1728615364691,0.002817,60582.0,60581.0,0.23049214]
[1728615364908,0.002817,60582.0,60581.0,0.25516828]
[1728615365120,0.002817,60582.0,60581.0,0.25526915]
[1728615365368,0.002817,60582.0,60581.0,0.23059301]
[1728615366236,0.002817,60582.0,60581.0,0.08203201]
[1728615366587,0.01962144,60582.0,60581.0,0.23059301]
[1728615366802,0.002817,60582.0,60581.0,0.23059301]
[1728615367020,0.01962144,60582.0,60581.0,0.23059301]
[1728615367234,0.002817,60582.0,60581.0,0.23059301]
[1728615367439,0.01962177,60582.0,60581.0,0.23059301]
[1728615367662,0.002817,60582.0,60581.0,0.2305977]
[1728615367894,0.01962256,60582.0,60581.0,0.2305977]
[1728615368129,0.002817,60582.0,60581.0,0.2305977]
[1728615368359,0.01962335,60582.0,60581.0,0.2305977]
[1728615369885,0.01962335,60582.0,60581.0,0.23059612]
[1728615370097,0.002817,60582.0,60581.0,0.23059612]
[1728615370987,0.01962184,60582.0,60581.0,0.23059612]
[1728615371208,0.002817,60582.0,60581.0,0.24601656]
[1728615371418,0.01962388,60582.0,60581.0,0.24601656]
[1728615371690,0.002817,60582.0,60581.0,0.24601656]
[1728615371919,0.01962105,60582.0,60581.0,0.24601656]
[1728615372145,0.002817,60582.0,60581.0,0.24601656]
[1728615372591,0.01962342,60582.0,60581.0,0.24601656]
[1728615372802,0.002817,60582.0,60581.0,0.24601656]
[1728615373074,0.01962421,60582.0,60581.0,0.24601656]
[1728615373290,0.002817,60582.0,60581.0,0.24601656]
[1728615373512,0.01962342,60582.0,60581.0,0.24601656]
[1728615373735,0.002817,60582.0,60581.0,0.24601656]
[1728615373937,0.01962421,60582.0,60581.0,0.24601656]
[1728615374146,0.01962579,60582.0,60581.0,0.24601656]
[1728615374587,0.01962579,60582.0,60581.0,0.24601405]
[1728615376700,0.01962579,60582.0,60581.0,0.09745305]
[1728615376953,0.43465902,60582.0,60581.0,0.02342044]
[1728615380861,0.43465902,60582.0,60581.0,0.02341959]
[1728615394429,0.43465902,60582.0,60581.0,0.02341402]
[1728615397401,0.43465902,60582.0,60581.0,0.008]
[1728615400420,0.33558379,60582.0,60581.0,0.008]
[1728615403582,0.33558379,60582.0,60581.0,0.02341441]
[1728615404268,0.33558379,60582.0,60581.0,0.008]
[1728615409289,0.33458379,60582.0,60581.0,0.001]
[1728615409513,0.33458379,60582.0,60573.0,0.24774756]
[1728615409514,0.148574,60576.0,60573.0,0.24774756]
[1728615409751,0.09907523,60574.0,60573.0,0.24774756]
[1728615410016,0.01684099,60575.0,60574.0,0.148578]
[1728615410235,0.0954,60578.0,60575.0,0.148576]
[1728615410958,0.0954,60578.0,60570.0,0.297176]
[1728615411211,0.24397,60578.0,60573.0,0.14858]
[1728615411957,0.148571,60577.0,60573.0,0.14858]
[1728615412462,0.148576,60575.0,60571.0,0.148585]
[1728615412677,0.001,60574.0,60573.0,0.149581]
[1728615412898,0.001,60575.0,60573.0,0.148581]
[1728615413120,0.001,60575.0,60573.0,0.149581]
[1728615413335,0.24864623,60577.0,60573.0,0.149581]
[1728615413581,0.24864623,60577.0,60573.0,0.157581]
[1728615413825,0.001,60575.0,60573.0,0.157581]
[1728615414044,0.24864623,60577.0,60573.0,0.157581]
[1728615414045,0.24764623,60577.0,60573.0,0.148581]
[1728615414281,0.001,60575.0,60573.0,0.149581]
[1728615414503,0.002,60575.0,60573.0,0.158581]
[1728615414727,0.002,60575.0,60573.0,0.01]
[1728615414976,0.150577,60575.0,60573.0,0.01]
[1728615415219,0.148578,60574.0,60573.0,0.01]
[1728615415488,0.002,60575.0,60573.0,0.01]
[1728615415709,0.002,60575.0,60573.0,0.15858]
[1728615415928,0.001,60575.0,60573.0,0.14958]
[1728615416148,0.148574,60576.0,60573.0,0.15758]
[1728615416392,0.01682975,60574.0,60573.0,0.15758]
[1728615416617,0.148574,60576.0,60573.0,0.14958]
[1728615416856,0.01782264,60575.0,60573.0,0.15758]
[1728615417078,0.01782264,60575.0,60573.0,0.15858]
[1728615417079,0.002,60575.0,60573.0,0.15858]
[1728615417323,0.01682106,60574.0,60573.0,0.001]
[1728615417544,0.01682106,60574.0,60572.0,0.148582]
[1728615417736,0.01882106,60574.0,60573.0,0.01]
[1728615417955,0.001,60574.0,60573.0,0.009]
[1728615418164,0.01782229,60574.0,60573.0,0.009]
[1728615418388,0.001,60574.0,60573.0,0.009]
[1728615418627,0.01782316,60574.0,60573.0,0.009]
[1728615418947,0.0754,60574.0,60570.0,0.148587]
[1728615419143,0.09222395,60574.0,60571.0,0.148585]
[1728615419366,0.34087718,60574.0,60573.0,0.001]
[1728615419589,0.34087718,60574.0,60572.0,0.01]
[1728615419815,0.19229918,60574.0,60573.0,0.001]
[1728615420263,0.19129918,60574.0,60571.0,0.148585]
[1728615420477,0.19329918,60574.0,60573.0,0.009]
[1728615420966,0.34087718,60574.0,60573.0,0.009]
[1728615421193,0.34187718,60574.0,60573.0,0.01]
[1728615422340,0.34087718,60574.0,60573.0,0.001]
[1728615422555,0.34187718,60574.0,60573.0,0.001]
[1728615422841,0.19329918,60574.0,60573.0,0.001]
[1728615423059,0.09322395,60574.0,60573.0,0.001]
[1728615423304,0.01782395,60574.0,60572.0,0.148582]
[1728615423538,0.01782395,60574.0,60573.0,0.009]
[1728615423771,0.01882395,60574.0,60573.0,0.01]
[1728615423995,0.01682395,60574.0,60572.0,0.148582]
[1728615424188,0.01682395,60574.0,60573.0,0.001]
[1728615424443,0.001,60574.0,60573.0,0.001]
[1728615424645,0.01782182,60574.0,60573.0,0.001]
[1728615424901,0.001,60574.0,60573.0,0.001]
[1728615425124,0.0178234,60574.0,60573.0,0.001]
[1728615425375,0.002,60574.0,60573.0,0.008]
[1728615425611,0.0188234,60574.0,60573.0,0.008]
[1728615425846,0.01882498,60574.0,60573.0,0.008]
[1728615432699,0.01964198,60574.0,60573.0,0.008]
[1728615438020,0.16821998,60574.0,60573.0,0.008]
[1728615446478,0.01964198,60574.0,60573.0,0.156581]
[1728615447371,0.01964198,60574.0,60573.0,0.008]
[1728615447688,0.16821998,60574.0,60573.0,0.008]
[1728615455228,0.26729521,60574.0,60573.0,0.008]
[1728615455661,0.36149521,60574.0,60573.0,0.008]
[1728615456669,0.11871721,60574.0,60573.0,0.008]
[1728615457389,0.01964198,60574.0,60573.0,0.008]
[1728615461661,0.16821998,60574.0,60573.0,0.008]
[1728615465357,0.16821998,60574.0,60573.0,0.02342139]
[1728615473071,0.16821998,60574.0,60573.0,0.008]
[1728615473284,0.16821998,60574.0,60573.0,0.02342356]
[1728615475257,0.01964198,60574.0,60573.0,0.02342356]
[1728615475508,0.01964198,60574.0,60573.0,0.17200456]
[1728615475727,0.01964198,60574.0,60573.0,0.22136258]
[1728615475949,0.002817,60574.0,60573.0,0.22136258]
[1728615476197,0.01865133,60574.0,60573.0,0.22036258]
[1728615476420,0.001817,60574.0,60573.0,0.16800456]
[1728615476642,0.001817,60574.0,60573.0,0.17300456]
[1728615476643,0.000817,60574.0,60573.0,0.17300456]
[1728615477081,0.001817,60574.0,60573.0,0.17000456]
[1728615477549,0.001817,60574.0,60573.0,0.18000456]
[1728615478517,0.01866683,60574.0,60573.0,0.18000456]
[1728615478734,0.0186669,60574.0,60573.0,0.18000456]
[1728615479206,0.001817,60574.0,60573.0,0.18000456]
[1728615479438,0.001817,60574.0,60573.0,0.164581]
[1728615479653,0.001817,60574.0,60573.0,0.17999916]
[1728615479886,0.001817,60574.0,60573.0,0.22934342]
[1728615480644,0.001817,60574.0,60573.0,0.17999916]
[1728615481817,0.001817,60574.0,60573.0,0.164581]
[1728615482043,0.01866845,60574.0,60573.0,0.17999695]
[1728615482280,0.001817,60574.0,60573.0,0.17999695]
[1728615482513,0.01867951,60574.0,60573.0,0.17999695]
[1728615482755,0.001817,60574.0,60573.0,0.17999695]
[1728615482988,0.01867958,60574.0,60573.0,0.17999695]
[1728615483249,0.001817,60574.0,60573.0,0.17999695]
[1728615483477,0.0186803,60574.0,60573.0,0.17999695]
[1728615483673,0.001817,60574.0,60573.0,0.17999695]
[1728615484199,0.01867958,60574.0,60573.0,0.17999695]
[1728615484425,0.001817,60574.0,60573.0,0.17999695]
[1728615484643,0.0186803,60574.0,60573.0,0.17999695]
[1728615484874,0.001817,60574.0,60573.0,0.17999695]
[1728615485787,0.01867958,60574.0,60573.0,0.17999695]
[1728615486046,0.001817,60574.0,60573.0,0.17999695]
[1728615486277,0.01867958,60574.0,60573.0,0.17999695]
[1728615486524,0.001817,60574.0,60573.0,0.17999695]
[1728615486974,0.01867958,60574.0,60573.0,0.17999695]
[1728615487199,0.001817,60574.0,60573.0,0.17999695]
[1728615487423,0.0186803,60574.0,60573.0,0.17999695]
[1728615487644,0.001817,60574.0,60573.0,0.17999695]
[1728615487870,0.01867958,60574.0,60573.0,0.17999695]
[1728615488085,0.001817,60574.0,60573.0,0.17999695]
[1728615488340,0.01867958,60574.0,60573.0,0.17999695]
[1728615494375,0.001817,60574.0,60573.0,0.17999695]
[1728615501786,0.001817,60574.0,60573.0,0.164581]
[1728615502009,0.001817,60574.0,60573.0,0.17998892]
[1728615504683,0.001817,60574.0,60573.0,0.164581]
[1728615504928,0.001817,60574.0,60573.0,0.17998812]
[1728615507905,0.100717,60574.0,60573.0,0.17998812]
[1728615508370,0.11757808,60574.0,60573.0,0.17998812]
[1728615511276,0.11757808,60574.0,60573.0,0.164581]
[1728615511538,0.11757808,60574.0,60573.0,0.17999524]
[1728615515964,0.11757808,60574.0,60573.0,0.03141424]
[1728615516874,0.11757808,60574.0,60573.0,0.17999524]
[1728615519047,0.11757808,60574.0,60573.0,0.17999224]
[1728615521957,0.11757808,60574.0,60573.0,0.03141124]
[1728615522632,0.26615608,60574.0,60573.0,0.03141124]
[1728615524377,0.26615608,60574.0,60573.0,0.016]
[1728615524591,0.26615608,60574.0,60573.0,0.03140921]
[1728615527747,0.34755608,60574.0,60573.0,0.016]
[1728615535251,0.34655608,60574.0,60573.0,0.01]
[1728615535476,0.35055608,60574.0,60573.0,0.01]
[1728615535716,0.20197808,60574.0,60567.0,0.24774756]
[1728615535963,0.34506823,60568.0,60567.0,0.24774756]
[1728615536204,0.3618657,60568.0,60567.0,0.24774756]
[1728615536412,0.3618657,60568.0,60565.0,0.001634]
[1728615537141,0.3618657,60568.0,60567.0,0.005]
[1728615537379,0.3618657,60568.0,60565.0,0.001634]
[1728615537852,0.3618657,60568.0,60565.0,0.008634]
[1728615538968,0.3628657,60568.0,60565.0,0.008634]
[1728615539209,0.3618657,60568.0,60565.0,0.008634]
[1728615539455,0.3618657,60568.0,60565.0,0.010634]
[1728615540334,0.2132727,60568.0,60565.0,0.159234]
[1728615540561,0.11419747,60568.0,60566.0,0.148596]
[1728615540816,0.11419747,60568.0,60565.0,0.010634]
[1728615541043,0.11419747,60568.0,60566.0,0.148597]
[1728615542754,0.01679747,60568.0,60567.0,0.148595]
[1728615543175,0.148587,60571.0,60567.0,0.148595]
[1728615543648,0.16538812,60570.0,60567.0,0.148595]
[1728615544120,0.16538812,60570.0,60567.0,0.005]
[1728615544347,0.16538812,60570.0,60566.0,0.148597]
[1728615544564,0.16538812,60570.0,60567.0,0.01538535]
[1728615544790,0.16538812,60570.0,60566.0,0.148597]
[1728615545017,0.16538812,60570.0,60567.0,0.01538589]
[1728615545221,0.16538812,60570.0,60566.0,0.148597]
[1728615545444,0.001,60568.0,60567.0,0.01538684]
[1728615545669,0.16538812,60570.0,60567.0,0.02038684]
[1728615545915,0.01679747,60568.0,60567.0,0.005]
[1728615546162,0.148588,60570.0,60567.0,0.01538771]
[1728615546400,0.01679826,60568.0,60566.0,0.153597]
[1728615546648,0.000817,60568.0,60567.0,0.01538911]
[1728615547073,0.000817,60568.0,60567.0,0.01938911]
[1728615547309,0.000817,60568.0,60567.0,0.02838911]
[1728615548461,0.000817,60568.0,60567.0,0.02438911]
[1728615548708,0.000817,60568.0,60567.0,0.01538911]
[1728615549135,0.000817,60568.0,60567.0,0.02838911]
[1728615549732,0.178117,60568.0,60567.0,0.02838911]
[1728615551502,0.19491899,60568.0,60567.0,0.02838911]
[1728615552474,0.11441899,60568.0,60567.0,0.02838911]
[1728615553372,0.11441899,60568.0,60567.0,0.013]
[1728615553641,0.11441899,60568.0,60567.0,0.02840064]
[1728615556719,0.11441899,60568.0,60567.0,0.013]
[1728615556950,0.11441899,60568.0,60567.0,0.02840509]
[1728615560172,0.11441899,60568.0,60567.0,0.02840663]
[1728615561714,0.26301199,60568.0,60567.0,0.02840663]
[1728615561954,0.11441899,60568.0,60567.0,0.02840663]
[1728615563564,0.11441899,60568.0,60567.0,0.02840744]
[1728615564042,0.26301199,60568.0,60567.0,0.02840744]
[1728615564494,0.11441899,60568.0,60567.0,0.02840744]
[1728615569064,0.34151199,60568.0,60567.0,0.02840744]
[1728615569523,0.19291899,60568.0,60567.0,0.02840744]
[1728615569740,0.34151199,60568.0,60567.0,0.02840744]
[1728615570668,0.34151199,60568.0,60567.0,0.013]
[1728615570888,0.34151199,60568.0,60567.0,0.02841015]
[1728615572481,0.19291899,60568.0,60567.0,0.02841015]
[1728615574147,0.19291899,60568.0,60567.0,0.02840911]
[1728615574383,0.34151199,60568.0,60567.0,0.02840911]
[1728615577785,0.34151199,60568.0,60567.0,0.02841042]
[1728615580882,0.34151199,60568.0,60567.0,0.013]
[1728615581363,0.34151199,60568.0,60567.0,0.0284089]
[1728615581790,0.34151199,60568.0,60567.0,0.013]
[1728615585184,0.34151199,60568.0,60567.0,0.01052797]
[1728615585404,0.19291899,60568.0,60567.0,0.01052797]
[1728615585917,0.34151199,60568.0,60567.0,0.01052797]
[1728615586129,0.44058722,60568.0,60567.0,0.01052797]
[1728615591889,0.44058722,60568.0,60567.0,0.004]
[1728615592177,0.226198,60566.0,60565.0,0.001634]
[1728615592405,0.318098,60566.0,60565.0,0.001634]
[1728615592634,0.33484939,60566.0,60565.0,0.001634]
[1728615593310,0.33484939,60566.0,60565.0,0.011634]
[1728615594651,0.33484939,60566.0,60565.0,0.016634]
[1728615600284,0.33484939,60566.0,60565.0,0.015614]
[1728615601485,0.01675139,60566.0,60565.0,0.015614]
[1728615601733,0.01675139,60566.0,60565.0,0.164214]
[1728615603590,0.01675139,60566.0,60565.0,0.015614]
[1728615603823,0.01675139,60566.0,60565.0,0.164214]
[1728615604761,0.01756839,60566.0,60565.0,0.164214]
[1728615608750,0.01756839,60566.0,60565.0,0.169214]
[1728615609236,0.01756839,60566.0,60565.0,0.249114]
[1728615609467,0.01756839,60566.0,60565.0,0.345514]
[1728615610579,0.01756839,60566.0,60565.0,0.5148233]
[1728615610993,0.01756839,60566.0,60565.0,0.5048233]
[1728615611306,0.01756839,60566.0,60565.0,0.55412241]
[1728615611530,0.01756839,60566.0,60565.0,0.56012193]
[1728615611749,0.01856839,60566.0,60565.0,0.5711173]
[1728615611965,0.01856839,60566.0,60565.0,0.4998233]
[1728615611966,0.01756839,60566.0,60565.0,0.4998233]
[1728615612190,0.01756839,60566.0,60565.0,0.56311861]
[1728615612414,0.01856839,60566.0,60565.0,0.57711861]
[1728615613355,0.01856839,60566.0,60565.0,0.57711711]
[1728615613577,0.01856839,60566.0,60565.0,0.5278233]
[1728615614077,0.01856839,60566.0,60565.0,0.57711711]
[1728615614291,0.01856839,60566.0,60565.0,0.70176402]
[1728615615696,0.000817,60568.0,60567.0,0.1845]
[1728615615697,1e-06,60568.0,60567.0,0.1845]
[1728615615933,0.000817,60574.0,60573.0,0.425681]
[1728615616174,0.000817,60574.0,60573.0,0.79314076]
[1728615616413,0.000817,60574.0,60573.0,0.84438867]
[1728615616628,0.000817,60574.0,60573.0,0.79314076]
[1728615617751,0.000817,60574.0,60573.0,0.80714076]
[1728615617983,0.000817,60574.0,60573.0,0.94398287]
[1728615618244,0.000817,60597.0,60581.0,0.398061]
[1728615618464,0.24774756,60586.0,60581.0,0.67344553]
[1728615618701,0.24774756,60593.0,60581.0,0.79552076]
[1728615620315,0.24774756,60593.0,60581.0,0.84457555]
[1728615620561,0.24774756,60593.0,60581.0,0.80757679]
[1728615620796,0.24774756,60593.0,60581.0,0.82157679]
[1728615621039,0.24774756,60593.0,60581.0,0.80757679]
[1728615621292,0.000817,60597.0,60581.0,0.82157679]
[1728615621526,0.000817,60597.0,60581.0,0.90916357]
[1728615621983,0.000817,60597.0,60581.0,0.83557679]
[1728615622917,0.000817,60597.0,60581.0,0.82157679]
[1728615623177,0.000817,60597.0,60581.0,0.83557679]
[1728615623404,0.000817,60597.0,60581.0,0.88454481]
[1728615623621,0.000817,60597.0,60581.0,0.82157679]
[1728615623836,0.000817,60597.0,60581.0,0.80757679]
[1728615624036,0.24469242,60600.0,60599.0,0.153517]
[1728615624374,0.24469242,60600.0,60599.0,0.3228263]
[1728615624595,0.01420374,60600.0,60599.0,0.3228263]
[1728615624820,0.148491,60610.0,60602.0,0.148509]
[1728615625719,0.148493,60609.0,60602.0,0.148509]
[1728615627664,0.148493,60609.0,60602.0,0.167509]
[1728615627897,0.148493,60609.0,60602.0,0.158509]
[1728615628122,0.148493,60609.0,60602.0,0.169509]
[1728615629548,0.148493,60609.0,60602.0,0.159509]
[1728615629769,0.148493,60609.0,60602.0,0.171509]
[1728615630004,0.148493,60609.0,60602.0,0.160509]
[1728615630261,0.148493,60609.0,60602.0,0.148509]
[1728615630576,0.082717,60603.0,60602.0,0.158509]
[1728615630676,0.082717,60603.0,60602.0,0.169509]
[1728615631137,0.331124,60603.0,60602.0,0.021]
[1728615631624,0.34551885,60603.0,60602.0,0.021]
[1728615631859,0.34551885,60603.0,60602.0,0.01]
[1728615632342,0.34551885,60603.0,60602.0,0.022]
[1728615632799,0.34551885,60603.0,60602.0,0.01]
[1728615633030,0.148515,60600.0,60596.0,0.148523]
[1728615633276,0.09907523,60599.0,60598.0,0.24774756]
[1728615633505,0.09907523,60599.0,60596.0,0.148523]
[1728615633737,0.11346277,60599.0,60596.0,0.148523]
[1728615634448,0.11346277,60599.0,60597.0,0.148522]
[1728615636077,0.11346277,60599.0,60597.0,0.154522]
[1728615636308,0.11346277,60599.0,60597.0,0.006]
[1728615636539,0.11346277,60599.0,60597.0,0.154522]
[1728615636768,0.11346277,60599.0,60597.0,0.159522]
[1728615637474,0.11346277,60599.0,60597.0,0.011]
[1728615638930,0.11346277,60599.0,60597.0,0.159522]
[1728615639169,0.11346277,60599.0,60597.0,0.011]
[1728615639395,0.11346277,60599.0,60598.0,0.148519]
[1728615641053,0.11346277,60599.0,60598.0,0.152519]
[1728615641746,0.11346277,60599.0,60598.0,0.157519]
[1728615642701,0.01438754,60599.0,60598.0,0.157519]
[1728615642935,0.01438754,60599.0,60598.0,0.3318283]
[1728615643175,0.000817,60603.0,60602.0,0.148509]
[1728615644377,0.000817,60603.0,60599.0,0.297029]
[1728615644378,0.091517,60603.0,60601.0,0.148511]
[1728615644629,0.091517,60603.0,60602.0,0.148509]
[1728615644630,0.10585917,60603.0,60602.0,0.148509]
[1728615645568,0.18395917,60603.0,60602.0,0.011]
[1728615646097,0.18395917,60603.0,60599.0,0.297034]
[1728615646321,0.18395917,60603.0,60600.0,0.148513]
[1728615646322,0.09907523,60601.0,60600.0,0.148513]
[1728615646768,0.1134148,60601.0,60600.0,0.148513]
[1728615647708,0.1134148,60601.0,60600.0,0.008]
[1728615648188,0.1134148,60601.0,60600.0,0.017]
[1728615652226,0.1134148,60601.0,60600.0,0.018632]
[1728615652953,0.1134148,60601.0,60600.0,0.167146]
[1728615654363,0.01433957,60601.0,60600.0,0.167146]
[1728615654590,0.169617,60603.0,60600.0,0.167146]
[1728615654811,0.01434122,60601.0,60600.0,0.167146]
[1728615655071,0.169617,60603.0,60600.0,0.167146]
[1728615655297,0.0143395,60601.0,60600.0,0.167146]
[1728615655525,0.169617,60603.0,60600.0,0.167146]
[1728615655764,0.0143395,60601.0,60600.0,0.167146]
[1728615655989,0.01433993,60602.0,60600.0,0.159146]
[1728615656250,0.01434072,60601.0,60600.0,0.158146]
[1728615656724,0.169617,60603.0,60600.0,0.159146]
[1728615656945,0.01433863,60601.0,60600.0,0.018632]
[1728615657186,0.169617,60603.0,60600.0,0.158146]
[1728615657421,0.01433933,60601.0,60600.0,0.158146]
[1728615657675,0.169617,60603.0,60600.0,0.159146]
[1728615657920,0.01434221,60601.0,60600.0,0.159146]
[1728615658152,0.169617,60603.0,60600.0,0.159146]
[1728615658379,0.01434379,60601.0,60600.0,0.159146]
[1728615658593,0.169617,60603.0,60600.0,0.001632]
[1728615658833,0.169617,60603.0,60601.0,0.148512]
[1728615660241,0.169617,60603.0,60601.0,0.155512]
[1728615660457,0.169617,60603.0,60601.0,0.015]
[1728615662018,0.148509,60602.0,60601.0,0.015]
[1728615662441,0.247909,60602.0,60601.0,0.015]
[1728615662926,0.247909,60602.0,60601.0,0.008]
[1728615663360,0.247909,60602.0,60601.0,0.007]
[1728615663802,0.247909,60602.0,60601.0,0.015]
[1728615664016,0.0994,60602.0,60601.0,0.015]
[1728615666447,0.0994,60602.0,60601.0,0.163512]
[1728615666681,0.000817,60603.0,60602.0,0.148509]
[1728615667333,0.01513284,60603.0,60602.0,0.148509]
[1728615667991,0.01513284,60603.0,60602.0,0.155509]